[Event "Titled Tuesday Blitz July 4 Early 2023"]
[White "Jimenez Jimenez, Leandro"]
[Black "Gunina, Valentina"]
[WhiteFideId "6415253"]
[BlackFideId "4167570"]
[WhiteElo "2472"]
[BlackElo "2749"]
[Result "0-1"]
[Round "5"]
[TimeControl "180+2"]
[Date "2023.07.04"]
[WhiteClock "0:00:09"]
[BlackClock "0:00:22"]
[Board "51"]

1. d4 {[%clk 0:03:00]}  d5 {[%clk 0:02:55]} 2. c4 {[%clk 0:03:01]}  c6 {[%clk 0:02:54]} 3. cxd5 {[%clk 0:03:00]}  cxd5 {[%clk 0:02:54]} 4. Nc3 {[%clk 0:03:01]}  Nf6 {[%clk 0:02:53]} 5. Nf3 {[%clk 0:03:02]}  Nc6 {[%clk 0:02:53]} 6. Bf4 {[%clk 0:03:02]}  a6 {[%clk 0:02:54]} 7. Rc1 {[%clk 0:03:01]}  Bf5 {[%clk 0:02:53]} 8. e3 {[%clk 0:02:59]}  Rc8 {[%clk 0:02:52]} 9. Be2 {[%clk 0:02:53]}  e6 {[%clk 0:02:52]} 10. O-O {[%clk 0:02:53]}  Bd6 {[%clk 0:02:53]} 11. Ne5 {[%clk 0:02:53]}  O-O {[%clk 0:02:52]} 12. Nxc6 {[%clk 0:02:53]}  Rxc6 {[%clk 0:02:51]} 13. Bxd6 {[%clk 0:02:49]}  Qxd6 {[%clk 0:02:51]} 14. Qb3 {[%clk 0:02:41]}  Qc7 {[%clk 0:02:40]} 15. f3 {[%clk 0:02:37]}  Rc8 {[%clk 0:02:39]} 16. Rcd1 {[%clk 0:02:23]}  h6 {[%clk 0:02:38]} 17. Bd3 {[%clk 0:02:22]}  Bxd3 {[%clk 0:02:36]} 18. Rxd3 {[%clk 0:02:23]}  Rb6 {[%clk 0:02:27]} 19. Qa3 {[%clk 0:02:22]}  Qc4 {[%clk 0:02:17]} 20. Rfd1 {[%clk 0:02:21]}  Qb4 {[%clk 0:01:46]} 21. Qxb4 {[%clk 0:02:13]}  Rxb4 {[%clk 0:01:46]} 22. b3 {[%clk 0:02:09]}  Rb6 {[%clk 0:01:43]} 23. Na4 {[%clk 0:02:08]}  Rbc6 {[%clk 0:01:43]} 24. Nc5 {[%clk 0:02:08]}  R8c7 {[%clk 0:01:41]} 25. Kf2 {[%clk 0:01:56]}  Nd7 {[%clk 0:01:37]} 26. Nxd7 {[%clk 0:01:45]}  Rxd7 {[%clk 0:01:37]} 27. R1d2 {[%clk 0:01:43]}  Kf8 {[%clk 0:01:36]} 28. e4 {[%clk 0:01:43]}  Ke7 {[%clk 0:01:36]} 29. e5 {[%clk 0:01:41]}  Rdc7 {[%clk 0:01:35]} 30. f4 {[%clk 0:01:40]}  g6 {[%clk 0:01:35]} 31. g4 {[%clk 0:01:39]}  Rc1 {[%clk 0:01:35]} 32. Rh3 {[%clk 0:01:38]}  R7c2 {[%clk 0:01:29]} 33. Ke2 {[%clk 0:01:25]}  Rxd2+ {[%clk 0:01:29]} 34. Kxd2 {[%clk 0:01:26]}  Ra1 {[%clk 0:01:28]} 35. a4 {[%clk 0:01:23]}  Rg1 {[%clk 0:01:24]} 36. Rg3 {[%clk 0:01:14]}  Rf1 {[%clk 0:01:19]} 37. Ke3 {[%clk 0:01:13]}  Re1+ {[%clk 0:01:17]} 38. Kd3 {[%clk 0:01:12]}  Rd1+ {[%clk 0:01:00]} 39. Ke3 {[%clk 0:01:05]}  Rb1 {[%clk 0:01:00]} 40. Kd2 {[%clk 0:01:04]}  Rb2+ {[%clk 0:00:59]} 41. Kc3 {[%clk 0:01:02]}  Rxh2 {[%clk 0:00:58]} 42. Kb4 {[%clk 0:00:58]}  Rf2 {[%clk 0:00:55]} 43. Kc5 {[%clk 0:00:58]}  Rxf4 {[%clk 0:00:54]} 44. b4 {[%clk 0:00:53]}  Kd7 {[%clk 0:00:47]} 45. Kb6 {[%clk 0:00:38]}  Rxd4 {[%clk 0:00:45]} 46. Rb3 {[%clk 0:00:36]}  Kc8 {[%clk 0:00:36]} 47. Kc5 {[%clk 0:00:36]}  Rxg4 {[%clk 0:00:31]} 48. Kd6 {[%clk 0:00:33]}  Rc4 {[%clk 0:00:30]} 49. Ke7 {[%clk 0:00:32]}  Rc7+ {[%clk 0:00:30]} 50. Kf6 {[%clk 0:00:33]}  b5 {[%clk 0:00:28]} 51. axb5 {[%clk 0:00:29]}  axb5 {[%clk 0:00:28]} 52. Ra3 {[%clk 0:00:28]}  Kb7 {[%clk 0:00:26]} 53. Ra5 {[%clk 0:00:28]}  Kb6 {[%clk 0:00:26]} 54. Ra8 {[%clk 0:00:27]}  Rd7 {[%clk 0:00:24]} 55. Rb8+ {[%clk 0:00:25]}  Kc6 {[%clk 0:00:24]} 56. Rc8+ {[%clk 0:00:25]}  Kb7 {[%clk 0:00:25]} 57. Rc3 {[%clk 0:00:24]}  d4 {[%clk 0:00:25]} 58. Rd3 {[%clk 0:00:25]}  Kc6 {[%clk 0:00:25]} 59. Kg7 {[%clk 0:00:18]}  h5 {[%clk 0:00:25]} 60. Kf8 {[%clk 0:00:18]}  Kd5 {[%clk 0:00:25]} 61. Ke8 {[%clk 0:00:19]}  Ra7 {[%clk 0:00:25]} 62. Rd1 {[%clk 0:00:15]}  Kxe5 {[%clk 0:00:25]} 63. Rc1 {[%clk 0:00:16]}  Ke4 {[%clk 0:00:25]} 64. Re1+ {[%clk 0:00:15]}  Kd5 {[%clk 0:00:25]} 65. Rd1 {[%clk 0:00:15]}  Kc4 {[%clk 0:00:25]} 66. Kf8 {[%clk 0:00:15]}  e5 {[%clk 0:00:25]} 67. Kg7 {[%clk 0:00:15]}  e4 {[%clk 0:00:25]} 68. Kf6 {[%clk 0:00:16]}  e3 {[%clk 0:00:25]} 69. Ke5 {[%clk 0:00:16]}  e2 {[%clk 0:00:26]} 70. Re1 {[%clk 0:00:16]}  d3 {[%clk 0:00:26]} 71. Kf4 {[%clk 0:00:16]}  d2 {[%clk 0:00:26]} 72. Rh1 {[%clk 0:00:15]}  e1=Q {[%clk 0:00:25]} 73. Kg5 {[%clk 0:00:15]}  Qe3+ {[%clk 0:00:23]} 74. Kh4 {[%clk 0:00:10]}  Qf4+ {[%clk 0:00:22]} 75. Kh3 {[%clk 0:00:10]}  Ra3+ {[%clk 0:00:22]} 76. Kg2 {[%clk 0:00:10]}  Rg3+ {[%clk 0:00:21]} 77. Kh2 {[%clk 0:00:09]}  Qh4# {[%clk 0:00:22]} 0-1


[Site "https://www.chess.com"]

[Event "Titled Tuesday Blitz July 4 Early 2023"]
[White "Atakhan, Abtin"]
[Black "Chor, Kevin"]
[WhiteFideId "22502203"]
[BlackFideId "2090740"]
[WhiteElo "2746"]
[BlackElo "2468"]
[Result "1-0"]
[Round "5"]
[TimeControl "180+2"]
[Date "2023.07.04"]
[WhiteClock "0:01:45"]
[BlackClock "0:00:04"]
[Board "52"]

1. Nf3 {[%clk 0:03:00]}  c5 {[%clk 0:02:59]} 2. c4 {[%clk 0:03:00]}  Nc6 {[%clk 0:02:59]} 3. Nc3 {[%clk 0:03:01]}  g6 {[%clk 0:02:59]} 4. e3 {[%clk 0:03:00]}  Bg7 {[%clk 0:02:59]} 5. d4 {[%clk 0:03:01]}  Nf6 {[%clk 0:02:57]} 6. d5 {[%clk 0:02:52]}  Nb8 {[%clk 0:02:37]} 7. e4 {[%clk 0:02:52]}  O-O {[%clk 0:02:34]} 8. h3 {[%clk 0:02:46]}  d6 {[%clk 0:02:32]} 9. Bd3 {[%clk 0:02:43]}  e6 {[%clk 0:02:30]} 10. O-O {[%clk 0:02:42]}  exd5 {[%clk 0:02:30]} 11. exd5 {[%clk 0:02:43]}  Re8 {[%clk 0:02:18]} 12. Bf4 {[%clk 0:02:43]}  a6 {[%clk 0:02:15]} 13. a4 {[%clk 0:02:36]}  Qb6 {[%clk 0:02:00]} 14. a5 {[%clk 0:02:27]}  Qc7 {[%clk 0:01:50]} 15. Re1 {[%clk 0:02:11]}  Bd7 {[%clk 0:01:14]} 16. Ng5 {[%clk 0:01:59]}  Nh5 {[%clk 0:00:42]} 17. Bh2 {[%clk 0:01:56]}  Be5 {[%clk 0:00:31]} 18. Qf3 {[%clk 0:01:52]}  Rf8 {[%clk 0:00:10]} 19. Nxh7 {[%clk 0:01:45]}  Bxh2+ {[%clk 0:00:07]} 20. Kxh2 {[%clk 0:01:45]}  f5 {[%clk 0:00:04]} 21. Nxf8 {[%clk 0:01:45]} 1-0


[Site "https://www.chess.com"]

[Event "Titled Tuesday Blitz July 4 Early 2023"]
[White "Postny, Evgeny"]
[Black "Kopczynski, Michal"]
[WhiteFideId "2804344"]
[BlackFideId "1124200"]
[WhiteElo "2732"]
[BlackElo "2457"]
[Result "1-0"]
[Round "5"]
[TimeControl "180+2"]
[Date "2023.07.04"]
[WhiteClock "0:00:09"]
[BlackClock "0:00:11"]
[Board "54"]

1. e4 {[%clk 0:03:00]}  c5 {[%clk 0:02:59]} 2. Nf3 {[%clk 0:03:00]}  d6 {[%clk 0:02:59]} 3. d4 {[%clk 0:03:00]}  cxd4 {[%clk 0:03:00]} 4. Nxd4 {[%clk 0:03:01]}  Nf6 {[%clk 0:03:01]} 5. Nc3 {[%clk 0:03:01]}  g6 {[%clk 0:03:01]} 6. Be3 {[%clk 0:02:58]}  Bg7 {[%clk 0:03:02]} 7. f3 {[%clk 0:02:58]}  O-O {[%clk 0:03:02]} 8. Qd2 {[%clk 0:02:59]}  Nc6 {[%clk 0:03:03]} 9. O-O-O {[%clk 0:02:58]}  d5 {[%clk 0:03:03]} 10. Qe1 {[%clk 0:02:55]}  e6 {[%clk 0:03:01]} 11. h4 {[%clk 0:02:44]}  h5 {[%clk 0:02:58]} 12. g4 {[%clk 0:02:36]}  hxg4 {[%clk 0:02:56]} 13. h5 {[%clk 0:02:36]}  gxh5 {[%clk 0:02:51]} 14. Nxc6 {[%clk 0:02:30]}  bxc6 {[%clk 0:02:51]} 15. e5 {[%clk 0:02:31]}  Nd7 {[%clk 0:02:48]} 16. f4 {[%clk 0:02:26]}  f5 {[%clk 0:02:32]} 17. exf6 {[%clk 0:02:10]}  Nxf6 {[%clk 0:02:29]} 18. Bd3 {[%clk 0:02:01]}  a5 {[%clk 0:02:07]} 19. Bg6 {[%clk 0:01:57]}  Rb8 {[%clk 0:02:01]} 20. Bd4 {[%clk 0:01:49]}  Bd7 {[%clk 0:01:44]} 21. Qh4 {[%clk 0:01:39]}  Be8 {[%clk 0:01:37]} 22. Bd3 {[%clk 0:01:30]}  Nd7 {[%clk 0:01:29]} 23. Qe1 {[%clk 0:00:55]}  Bxd4 {[%clk 0:01:24]} 24. Qxe6+ {[%clk 0:00:55]}  Rf7 {[%clk 0:00:58]} 25. Rxh5 {[%clk 0:00:47]}  Qf6 {[%clk 0:00:52]} 26. Rg5+ {[%clk 0:00:27]}  Kf8 {[%clk 0:00:52]} 27. Qxg4 {[%clk 0:00:26]}  Qxf4+ {[%clk 0:00:50]} 28. Qxf4 {[%clk 0:00:26]}  Rxf4 {[%clk 0:00:51]} 29. Rh1 {[%clk 0:00:21]}  Nc5 {[%clk 0:00:40]} 30. Bh7 {[%clk 0:00:16]}  Rh4 {[%clk 0:00:34]} 31. Rf5+ {[%clk 0:00:13]}  Ke7 {[%clk 0:00:32]} 32. Rxh4 {[%clk 0:00:13]}  Be3+ {[%clk 0:00:30]} 33. Kb1 {[%clk 0:00:11]}  d4 {[%clk 0:00:27]} 34. Nd1 {[%clk 0:00:09]}  Bd7 {[%clk 0:00:23]} 35. Rxc5 {[%clk 0:00:08]}  Kd6 {[%clk 0:00:19]} 36. Rxa5 {[%clk 0:00:08]}  Bd2 {[%clk 0:00:17]} 37. Rxd4+ {[%clk 0:00:08]}  Kc7 {[%clk 0:00:17]} 38. Rxd2 {[%clk 0:00:09]}  Rh8 {[%clk 0:00:13]} 39. Ra7+ {[%clk 0:00:08]}  Kb6 {[%clk 0:00:11]} 40. Raxd7 {[%clk 0:00:09]} 1-0


[Site "https://www.chess.com"]

[Event "Titled Tuesday Blitz July 4 Early 2023"]
[White "Wagner, Dennis"]
[Black "Bueno, Alfeu Junior Varela"]
[WhiteFideId "24650684"]
[BlackFideId "2108879"]
[WhiteElo "2731"]
[BlackElo "2445"]
[Result "1-0"]
[Round "5"]
[TimeControl "180+2"]
[Date "2023.07.04"]
[WhiteClock "0:00:27"]
[BlackClock "0:00:03"]
[Board "55"]

1. e4 {[%clk 0:02:56]}  e6 {[%clk 0:02:56]} 2. d4 {[%clk 0:02:55]}  d5 {[%clk 0:02:56]} 3. e5 {[%clk 0:02:56]}  c5 {[%clk 0:02:56]} 4. c3 {[%clk 0:02:56]}  Nc6 {[%clk 0:02:55]} 5. Nf3 {[%clk 0:02:57]}  Bd7 {[%clk 0:02:55]} 6. Be2 {[%clk 0:02:57]}  Nge7 {[%clk 0:02:54]} 7. O-O {[%clk 0:02:56]}  Nf5 {[%clk 0:02:54]} 8. dxc5 {[%clk 0:02:54]}  Bxc5 {[%clk 0:02:53]} 9. b4 {[%clk 0:02:53]}  Bb6 {[%clk 0:02:52]} 10. a4 {[%clk 0:02:51]}  O-O {[%clk 0:02:41]} 11. a5 {[%clk 0:02:49]}  Bc7 {[%clk 0:02:37]} 12. Bd3 {[%clk 0:02:30]}  Nxe5 {[%clk 0:02:07]} 13. Nxe5 {[%clk 0:02:31]}  Bxe5 {[%clk 0:02:04]} 14. Bxf5 {[%clk 0:02:31]}  exf5 {[%clk 0:02:04]} 15. Qxd5 {[%clk 0:02:31]}  Qc7 {[%clk 0:01:44]} 16. h3 {[%clk 0:02:27]}  Bc6 {[%clk 0:01:27]} 17. Qc5 {[%clk 0:02:26]}  b6 {[%clk 0:01:13]} 18. Qe3 {[%clk 0:02:16]}  Rfe8 {[%clk 0:01:13]} 19. Qg5 {[%clk 0:02:07]}  Be4 {[%clk 0:01:02]} 20. axb6 {[%clk 0:02:02]}  axb6 {[%clk 0:00:41]} 21. Rxa8 {[%clk 0:02:02]}  Rxa8 {[%clk 0:00:42]} 22. Be3 {[%clk 0:01:54]}  Bxb1 {[%clk 0:00:25]} 23. Rxb1 {[%clk 0:01:52]}  Qxc3 {[%clk 0:00:25]} 24. Qxf5 {[%clk 0:01:46]}  Ra1 {[%clk 0:00:21]} 25. g4 {[%clk 0:01:28]}  Qxb4 {[%clk 0:00:18]} 26. Rxa1 {[%clk 0:00:56]}  Bxa1 {[%clk 0:00:19]} 27. Bxb6 {[%clk 0:00:53]}  g6 {[%clk 0:00:13]} 28. Qc8+ {[%clk 0:00:53]}  Kg7 {[%clk 0:00:11]} 29. Qc6 {[%clk 0:00:50]}  Bd4 {[%clk 0:00:08]} 30. Bxd4+ {[%clk 0:00:40]}  Qxd4 {[%clk 0:00:09]} 31. Kg2 {[%clk 0:00:39]}  Qf4 {[%clk 0:00:07]} 32. Qd5 {[%clk 0:00:39]}  Qf6 {[%clk 0:00:06]} 33. g5 {[%clk 0:00:38]}  Qc3 {[%clk 0:00:05]} 34. h4 {[%clk 0:00:35]}  Qb2 {[%clk 0:00:03]} 35. Kg3 {[%clk 0:00:34]}  Qc3+ {[%clk 0:00:03]} 36. Kf4 {[%clk 0:00:29]}  Qa1 {[%clk 0:00:02]} 37. Qe5+ {[%clk 0:00:29]}  Qxe5+ {[%clk 0:00:02]} 38. Kxe5 {[%clk 0:00:30]}  h6 {[%clk 0:00:01]} 39. Kd6 {[%clk 0:00:25]}  hxg5 {[%clk 0:00:01]} 40. hxg5 {[%clk 0:00:25]}  f6 {[%clk 0:00:02]} 41. f4 {[%clk 0:00:25]}  fxg5 {[%clk 0:00:02]} 42. fxg5 {[%clk 0:00:26]}  Kf7 {[%clk 0:00:03]} 43. Kd7 {[%clk 0:00:27]}  Kf8 {[%clk 0:00:03]} 44. Ke6 {[%clk 0:00:25]}  Ke8 {[%clk 0:00:03]} 45. Kf6 {[%clk 0:00:26]}  Kf8 {[%clk 0:00:04]} 46. Kxg6 {[%clk 0:00:26]}  Kg8 {[%clk 0:00:04]} 47. Kh6 {[%clk 0:00:26]}  Kh8 {[%clk 0:00:04]} 48. g6 {[%clk 0:00:26]}  Kg8 {[%clk 0:00:03]} 49. g7 {[%clk 0:00:27]} 1-0


[Site "https://www.chess.com"]

[Event "Titled Tuesday Blitz July 4 Early 2023"]
[White "Panesar Vedant"]
[Black "Prieto Aranguren, Alain"]
[WhiteFideId "35033018"]
[BlackFideId "2268906"]
[WhiteElo "2714"]
[BlackElo "2351"]
[Result "1-0"]
[Round "5"]
[TimeControl "180+2"]
[Date "2023.07.04"]
[WhiteClock "0:01:53"]
[BlackClock "0:02:05"]
[Board "58"]

1. e4 {[%clk 0:03:00]}  c6 {[%clk 0:02:57]} 2. Nf3 {[%clk 0:02:58]}  d5 {[%clk 0:02:57]} 3. d3 {[%clk 0:02:59]}  g6 {[%clk 0:02:55]} 4. e5 {[%clk 0:02:55]}  Bg7 {[%clk 0:02:55]} 5. d4 {[%clk 0:02:55]}  c5 {[%clk 0:02:56]} 6. c3 {[%clk 0:02:43]}  Nc6 {[%clk 0:02:56]} 7. Bb5 {[%clk 0:02:43]}  cxd4 {[%clk 0:02:49]} 8. cxd4 {[%clk 0:02:36]}  Bg4 {[%clk 0:02:47]} 9. Bxc6+ {[%clk 0:02:23]}  bxc6 {[%clk 0:02:46]} 10. Nbd2 {[%clk 0:02:18]}  e6 {[%clk 0:02:44]} 11. O-O {[%clk 0:02:17]}  Ne7 {[%clk 0:02:44]} 12. h3 {[%clk 0:02:17]}  Bxf3 {[%clk 0:02:43]} 13. Qxf3 {[%clk 0:02:16]}  O-O {[%clk 0:02:44]} 14. Nb3 {[%clk 0:02:16]}  Qb6 {[%clk 0:02:38]} 15. Bg5 {[%clk 0:02:09]}  Nf5 {[%clk 0:02:37]} 16. Qc3 {[%clk 0:02:10]}  Rfc8 {[%clk 0:02:33]} 17. g4 {[%clk 0:02:07]}  Nh6 {[%clk 0:02:30]} 18. Qd2 {[%clk 0:02:01]}  c5 {[%clk 0:02:27]} 19. dxc5 {[%clk 0:01:58]}  Qc7 {[%clk 0:02:22]} 20. Bxh6 {[%clk 0:01:57]}  Bxe5 {[%clk 0:02:22]} 21. Rfe1 {[%clk 0:01:57]}  f6 {[%clk 0:02:05]} 22. f4 {[%clk 0:01:53]} 1-0


[Site "https://www.chess.com"]

[Event "Titled Tuesday Blitz July 4 Early 2023"]
[White "Sargsyan, Anna M."]
[Black "Demchenko, Anton"]
[WhiteFideId "13308130"]
[BlackFideId "4160258"]
[WhiteElo "2598"]
[BlackElo "2875"]
[Result "0-1"]
[Round "5"]
[TimeControl "180+2"]
[Date "2023.07.04"]
[WhiteClock "0:00:55"]
[BlackClock "0:00:42"]
[Board "62"]

1. d4 {[%clk 0:03:00]}  Nf6 {[%clk 0:02:59]} 2. c4 {[%clk 0:03:01]}  d6 {[%clk 0:02:59]} 3. Nf3 {[%clk 0:02:58]}  Nc6 {[%clk 0:02:59]} 4. Nc3 {[%clk 0:02:57]}  e5 {[%clk 0:02:58]} 5. dxe5 {[%clk 0:02:57]}  dxe5 {[%clk 0:02:58]} 6. Qxd8+ {[%clk 0:02:58]}  Kxd8 {[%clk 0:02:58]} 7. Bg5 {[%clk 0:02:58]}  Be6 {[%clk 0:02:58]} 8. O-O-O+ {[%clk 0:02:58]}  Kc8 {[%clk 0:02:58]} 9. e3 {[%clk 0:02:47]}  Nd7 {[%clk 0:02:58]} 10. Be2 {[%clk 0:02:33]}  f6 {[%clk 0:02:58]} 11. Bh4 {[%clk 0:02:32]}  a5 {[%clk 0:02:59]} 12. Nd5 {[%clk 0:02:21]}  Nc5 {[%clk 0:02:51]} 13. Nd2 {[%clk 0:02:16]}  Nb4 {[%clk 0:02:49]} 14. Nb3 {[%clk 0:01:57]}  Nxa2+ {[%clk 0:02:29]} 15. Kb1 {[%clk 0:01:55]}  Nb4 {[%clk 0:02:27]} 16. Nxc5 {[%clk 0:01:43]}  Bxc5 {[%clk 0:02:27]} 17. f4 {[%clk 0:01:44]}  Bf5+ {[%clk 0:02:20]} 18. Ka1 {[%clk 0:01:43]}  c6 {[%clk 0:02:16]} 19. Nc3 {[%clk 0:01:39]}  Nc2+ {[%clk 0:02:15]} 20. Ka2 {[%clk 0:01:40]}  Nxe3 {[%clk 0:02:16]} 21. Rc1 {[%clk 0:01:37]}  exf4 {[%clk 0:02:15]} 22. Na4 {[%clk 0:01:33]}  Bd4 {[%clk 0:02:15]} 23. c5 {[%clk 0:01:32]}  Kc7 {[%clk 0:02:03]} 24. Bf2 {[%clk 0:01:26]}  Rad8 {[%clk 0:02:00]} 25. g3 {[%clk 0:01:26]}  Nc2 {[%clk 0:01:51]} 26. Rhf1 {[%clk 0:01:18]}  Bxf2 {[%clk 0:01:29]} 27. Rxf2 {[%clk 0:01:19]}  Rd2 {[%clk 0:01:29]} 28. Rxf4 {[%clk 0:01:13]}  Nb4+ {[%clk 0:00:55]} 29. Ka3 {[%clk 0:01:10]}  Bg6 {[%clk 0:00:51]} 30. Bc4 {[%clk 0:01:06]}  Re8 {[%clk 0:00:48]} 31. h4 {[%clk 0:00:59]}  Re3+ {[%clk 0:00:46]} 32. Nc3 {[%clk 0:01:00]}  Rxg3 {[%clk 0:00:42]} 33. Re1 {[%clk 0:00:55]}  Nc2+ {[%clk 0:00:42]} 0-1


[Site "https://www.chess.com"]

[Event "Titled Tuesday Blitz July 4 Early 2023"]
[White "Asavasaetakul, Chawit"]
[Black "Ter-Sahakyan, Samvel"]
[WhiteFideId "6204856"]
[BlackFideId "13302531"]
[WhiteElo "2581"]
[BlackElo "2864"]
[Result "0-1"]
[Round "5"]
[TimeControl "180+2"]
[Date "2023.07.04"]
[WhiteClock "0:00:24"]
[BlackClock "0:01:00"]
[Board "63"]

1. e4 {[%clk 0:03:00]}  c5 {[%clk 0:02:58]} 2. c3 {[%clk 0:03:00]}  d5 {[%clk 0:02:57]} 3. exd5 {[%clk 0:03:00]}  Qxd5 {[%clk 0:02:56]} 4. d4 {[%clk 0:03:01]}  Nf6 {[%clk 0:02:53]} 5. Nf3 {[%clk 0:03:01]}  e6 {[%clk 0:02:54]} 6. Bd3 {[%clk 0:03:01]}  Nc6 {[%clk 0:02:46]} 7. O-O {[%clk 0:03:00]}  Be7 {[%clk 0:02:46]} 8. Qe2 {[%clk 0:03:00]}  O-O {[%clk 0:02:39]} 9. Rd1 {[%clk 0:02:59]}  cxd4 {[%clk 0:02:39]} 10. cxd4 {[%clk 0:02:59]}  Rd8 {[%clk 0:02:26]} 11. Nc3 {[%clk 0:02:58]}  Qh5 {[%clk 0:02:26]} 12. Bf4 {[%clk 0:02:33]}  Bd7 {[%clk 0:02:17]} 13. Rac1 {[%clk 0:02:31]}  Rac8 {[%clk 0:02:16]} 14. Bb1 {[%clk 0:02:30]}  Nb4 {[%clk 0:02:00]} 15. Qd2 {[%clk 0:02:03]}  Nbd5 {[%clk 0:01:53]} 16. Bg3 {[%clk 0:01:58]}  Bc6 {[%clk 0:01:39]} 17. Ne5 {[%clk 0:01:57]}  Nxc3 {[%clk 0:01:39]} 18. bxc3 {[%clk 0:01:42]}  Be4 {[%clk 0:01:39]} 19. c4 {[%clk 0:01:35]}  b6 {[%clk 0:01:32]} 20. Qe3 {[%clk 0:01:28]}  Qf5 {[%clk 0:01:24]} 21. f3 {[%clk 0:01:08]}  Bxb1 {[%clk 0:01:22]} 22. Rxb1 {[%clk 0:01:08]}  Nd7 {[%clk 0:01:16]} 23. Kh1 {[%clk 0:00:57]}  Nxe5 {[%clk 0:01:16]} 24. dxe5 {[%clk 0:00:42]}  h5 {[%clk 0:01:15]} 25. Rxd8+ {[%clk 0:00:40]}  Rxd8 {[%clk 0:01:15]} 26. Rc1 {[%clk 0:00:40]}  Bg5 {[%clk 0:01:12]} 27. f4 {[%clk 0:00:40]}  Be7 {[%clk 0:01:13]} 28. h3 {[%clk 0:00:39]}  Rd3 {[%clk 0:01:09]} 29. Qe1 {[%clk 0:00:39]}  Bc5 {[%clk 0:01:01]} 30. Kh2 {[%clk 0:00:34]}  h4 {[%clk 0:01:00]} 31. Bxh4 {[%clk 0:00:34]}  Qxf4+ {[%clk 0:01:00]} 32. Bg3 {[%clk 0:00:24]}  Rxg3 {[%clk 0:01:00]} 0-1


[Site "https://www.chess.com"]

[Event "Titled Tuesday Blitz July 4 Early 2023"]
[White "Kim, Sergey"]
[Black "Talibov, Shiroghlan"]
[WhiteFideId "13700570"]
[BlackFideId "13429078"]
[WhiteElo "2574"]
[BlackElo "2796"]
[Result "0-1"]
[Round "5"]
[TimeControl "180+2"]
[Date "2023.07.04"]
[WhiteClock "0:00:05"]
[BlackClock "0:00:05"]
[Board "64"]

1. d4 {[%clk 0:03:00]}  Nf6 {[%clk 0:02:59]} 2. c4 {[%clk 0:03:01]}  b6 {[%clk 0:02:51]} 3. Nc3 {[%clk 0:03:00]}  Bb7 {[%clk 0:02:48]} 4. Nf3 {[%clk 0:02:59]}  e6 {[%clk 0:02:48]} 5. a3 {[%clk 0:02:59]}  d5 {[%clk 0:02:42]} 6. cxd5 {[%clk 0:02:57]}  Nxd5 {[%clk 0:02:41]} 7. e3 {[%clk 0:02:57]}  Nd7 {[%clk 0:02:40]} 8. Bd3 {[%clk 0:02:57]}  c5 {[%clk 0:02:40]} 9. O-O {[%clk 0:02:57]}  cxd4 {[%clk 0:02:39]} 10. exd4 {[%clk 0:02:56]}  Be7 {[%clk 0:02:39]} 11. Re1 {[%clk 0:02:55]}  O-O {[%clk 0:02:38]} 12. Ne4 {[%clk 0:02:47]}  Rc8 {[%clk 0:02:36]} 13. Qe2 {[%clk 0:02:41]}  N7f6 {[%clk 0:02:35]} 14. Ne5 {[%clk 0:02:37]}  Nxe4 {[%clk 0:02:34]} 15. Qxe4 {[%clk 0:02:35]}  g6 {[%clk 0:02:34]} 16. Bh6 {[%clk 0:02:29]}  Bf6 {[%clk 0:02:05]} 17. Bxf8 {[%clk 0:02:21]}  Kxf8 {[%clk 0:02:06]} 18. Qf3 {[%clk 0:02:12]}  Kg7 {[%clk 0:01:59]} 19. Be4 {[%clk 0:02:07]}  Rc7 {[%clk 0:01:58]} 20. Rac1 {[%clk 0:02:02]}  h5 {[%clk 0:01:48]} 21. Qg3 {[%clk 0:01:48]}  Rxc1 {[%clk 0:01:32]} 22. Rxc1 {[%clk 0:01:48]}  Bg5 {[%clk 0:01:27]} 23. Rd1 {[%clk 0:01:38]}  Nf4 {[%clk 0:01:14]} 24. Qf3 {[%clk 0:01:34]}  Ba6 {[%clk 0:01:09]} 25. Bd3 {[%clk 0:01:17]}  Bxd3 {[%clk 0:01:00]} 26. Nxd3 {[%clk 0:01:16]}  Nd5 {[%clk 0:00:57]} 27. g3 {[%clk 0:01:11]}  h4 {[%clk 0:00:54]} 28. Ne5 {[%clk 0:01:10]}  Qc7 {[%clk 0:00:52]} 29. Qe2 {[%clk 0:01:03]}  h3 {[%clk 0:00:49]} 30. Qc4 {[%clk 0:01:01]}  Qd8 {[%clk 0:00:46]} 31. Qe2 {[%clk 0:00:53]}  Qc8 {[%clk 0:00:43]} 32. Qc4 {[%clk 0:00:52]}  Qd8 {[%clk 0:00:42]} 33. Qe2 {[%clk 0:00:52]}  Bf6 {[%clk 0:00:34]} 34. Qg4 {[%clk 0:00:48]}  Bxe5 {[%clk 0:00:29]} 35. dxe5 {[%clk 0:00:47]}  Qc7 {[%clk 0:00:28]} 36. Qxh3 {[%clk 0:00:44]}  Qc2 {[%clk 0:00:28]} 37. Qf1 {[%clk 0:00:44]}  Qxb2 {[%clk 0:00:25]} 38. Qe1 {[%clk 0:00:39]}  Qxa3 {[%clk 0:00:23]} 39. Qe4 {[%clk 0:00:36]}  Qb3 {[%clk 0:00:17]} 40. Rd3 {[%clk 0:00:33]}  Qb1+ {[%clk 0:00:15]} 41. Kg2 {[%clk 0:00:33]}  a5 {[%clk 0:00:15]} 42. Qf3 {[%clk 0:00:32]}  Qb5 {[%clk 0:00:12]} 43. h4 {[%clk 0:00:30]}  a4 {[%clk 0:00:07]} 44. h5 {[%clk 0:00:30]}  gxh5 {[%clk 0:00:07]} 45. Rd4 {[%clk 0:00:26]}  Qc6 {[%clk 0:00:04]} 46. Kh2 {[%clk 0:00:22]}  Kf8 {[%clk 0:00:01]} 47. Qxh5 {[%clk 0:00:20]}  Qc5 {[%clk 0:00:01]} 48. Qh8+ {[%clk 0:00:17]}  Ke7 {[%clk 0:00:02]} 49. Qh4+ {[%clk 0:00:18]}  Kd7 {[%clk 0:00:02]} 50. Kg2 {[%clk 0:00:15]}  a3 {[%clk 0:00:02]} 51. Ra4 {[%clk 0:00:14]}  b5 {[%clk 0:00:02]} 52. Ra8 {[%clk 0:00:13]}  Nc7 {[%clk 0:00:02]} 53. Qd8+ {[%clk 0:00:11]}  Kc6 {[%clk 0:00:02]} 54. Rc8 {[%clk 0:00:11]}  Qd5+ {[%clk 0:00:02]} 55. Kh2 {[%clk 0:00:06]}  Qxd8 {[%clk 0:00:02]} 56. Rxd8 {[%clk 0:00:06]}  b4 {[%clk 0:00:03]} 57. Rd1 {[%clk 0:00:05]}  a2 {[%clk 0:00:03]} 58. Rc1+ {[%clk 0:00:06]}  Kb7 {[%clk 0:00:03]} 59. Rd1 {[%clk 0:00:05]}  b3 {[%clk 0:00:03]} 60. g4 {[%clk 0:00:06]}  b2 {[%clk 0:00:04]} 61. g5 {[%clk 0:00:07]}  b1=Q {[%clk 0:00:04]} 62. g6 {[%clk 0:00:08]}  Qxd1 {[%clk 0:00:04]} 63. gxf7 {[%clk 0:00:05]}  Qh5+ {[%clk 0:00:05]} 0-1


[Site "https://www.chess.com"]